Cogmind - Beta 14 --- EXPLORER MODE // 2024.09.28 @ 21:20:26 Player: Cwaftwer Result: Destroyed by LH-126(R) with Subdweller Machine Gun Performance ------------- Evolutions (0) 0 Regions Visited (3) 600 Robots Destroyed (32) 160 Value Destroyed (768) 768 Prototype IDs (7) 140 Alien Tech Used (0) 0 Bonus (0) 0 TOTAL SCORE: 1668 Bonus ------- None Cogmind --------- Core Integrity 0/250 Matter 183/300 Energy 100/100 System Corruption 3% Temperature Cool (0) Movement Treading (240) Ox1 Location -10/Subcaves Parts ------- > --- POWER (2) -------- (None) > --- PROPULSION (2) --- Light Treads Light Treads > --- UTILITY (2) ------ High-capacity Storage Unit Utility Shielding > --- WEAPON (2) ------- Battle Rifle > --- INVENTORY (20) --- Light Treads Light Treads Heat Sink Improved Heat Sink Medium Battery (150) Structural Scanner Seismic Detector Core Shielding Tractor Beam Cobbler Unit Light Assault Rifle Light Cannon Light Cannon Light Cannon Grenade Launcher Mining Claw Peak State ------------ > --- POWER ------------ Ion Engine Ion Engine > --- PROPULSION ------- Light Treads Light Treads > --- UTILITY ---------- High-capacity Storage Unit Light Armor Plating > --- WEAPON ----------- Assault Rifle Light Assault Rifle > --- INVENTORY -------- Ion Engine Light Treads Light Treads Light Treads Light Treads Heat Sink Structural Scanner Seismic Detector Core Shielding Utility Shielding Light Armor Plating Tractor Beam Light Cannon Light Cannon Light Cannon Light Cannon Light Cannon Grenade Launcher Grenade Launcher Mining Claw [Rating: 10] Favorites ----------- Power Ion Engine Engine Ion Engine Propulsion Light Treads Treads Light Treads Utility High-capacity Storage Unit Storage High-capacity Storage Unit Protection Light Armor Plating Weapon Light Cannon Ballistic Gun Assault Rifle Ballistic Cannon Light Cannon Launcher Grenade Launcher Slashing Weapon Mining Claw Build | -11 -10 -10 -10 ------- Run | Yrd Mat Min Sub Slots Evolved 1 | . 1 . . Power 1 | . 1 . . Propulsion . | . . . . Utility . | . . . . Weapon . | . . . . Parts Attached 26 | 7 8 9 2 Power 5 | 1 3 1 . Engine 5 | 1 3 1 . Core . | . . . . Reactor . | . . . . Propulsion 5 | 2 1 2 . Treads 5 | 2 1 2 . Leg . | . . . . Wheel . | . . . . Hover . | . . . . Flight . | . . . . Utility 6 | 2 2 2 . Device . | . . . . Storage 2 | 1 1 . . Processor . | . . . . Hackware . | . . . . Protection 4 | 1 1 2 . Artifact . | . . . . Weapon 10 | 2 2 4 2 Energy Gun . | . . . . Energy Cannon . | . . . . Ballistic Gun 4 | 2 . 1 1 Ballistic Cannon 3 | . 2 1 . Launcher 2 | . . 2 . Special Weapon . | . . . . Impact Weapon . | . . . . Slashing Weapon 1 | . . . 1 Piercing Weapon . | . . . . Special Melee Weapon . | . . . . Unidentified Prototypes . | . . . . Parts Lost 10 | . . 8 2 Power 3 | . . 2 1 Propulsion 2 | . . 2 . Utility 2 | . . 2 . Weapon 3 | . . 2 1 Highest Loss Streak 5 | . . 5 1 To Critical Strikes . | . . . . Average Slot Usage (%) 91 | . 95 89 86 Engine 16 | . 20 15 11 Treads 24 | . 24 24 25 Storage 12 | . 12 12 12 Protection 11 | . 11 12 12 Ballistic Gun 12 | . 23 6 3 Ballistic Cannon 9 | . 1 16 11 Slashing Weapon 1 | . . . 8 Peak Build Rating 10 | 7 10 10 10 Average Rating 8 | 5 8 8 8 On Entrance 6 | . 7 9 8 Naked Turns . | . . . . Heaviest Build 59 | 21 59 59 51 Greatest Support 40 | 40 40 40 40 Greatest Overweight (x) 2 | . 2 1 1 Average Overweight (x) . | . . 1 1 Largest Inventory Capacity 20 | 10 20 20 20 Average Capacity 19 | 7 19 20 20 Most Carried 20 | 3 20 20 17 Average Carried 16 | 1 15 16 16 Final Capacity 20 | 10 20 20 20 Final Carried 19 | 3 19 16 17 Class Distribution -------------------- 100% | Hacker-Mutant Dominant Class ---------------- Hacker-Mutant | -10/Materials Hacker-Mutant | -10/Mines Hacker-Mutant | -10/Subcaves Resources | -11 -10 -10 -10 ----------- Run | Yrd Mat Min Sub Matter Collected 1014 | 187 365 430 32 Remotely . | . . . . Salvage Created 1032 | . 680 233 119 Parts 63 | . 43 14 6 Haulers Intercepted 2 | . 2 . . Recyclers Shooed 1 | . 1 . . Parts Field Recycled . | . . . . Retrieved Matter . | . . . . Parts Self-Destructed . | . . . . Prevented . | . . . . Kills | -11 -10 -10 -10 ------- Run | Yrd Mat Min Sub Combat Hostiles Destroyed 43 | . 14 27 2 Guns 17 | . 14 1 2 Cannons 10 | . . 10 . AOE 16 | . . 16 . Classes Destroyed 7 | . 5 1 1 Worker 1 | . 1 . . Hauler 2 | . 2 . . Watcher 3 | . 3 . . Swarmer 10 | . 4 6 . Grunt 14 | . 10 4 . Subdweller 2 | . . . 2 Assembled 17 | . . 17 . Best Kill Streak 17 | . 6 17 2 Combat Bots Only 17 | . 5 17 2 Max Kills in Single Turn 3 | . 1 3 1 Gunslinging . | . . . . Exploded 3 | . . 3 . Melee . | . . . . Uniques/NPCs Destroyed . | . . . . Combat | -11 -10 -10 -10 -------- Run | Yrd Mat Min Sub Hostile Shots Fired 219 | . 66 119 34 Missed 57 | . 14 32 11 Damage Taken 1762 | . 358 986 418 Core 256 | . 45 125 86 Absorbed by Shields . | . . . . Redirected to Shielding 7 | . . 1 6 Ignored by Resistances 1072 | . 230 598 244 Regen/Repaired (Parts) 129 | . 129 . . Core Remaining (%) 100 | 100 . . . Volleys Fired 114 | . 49 41 24 Largest 2 | . 2 2 2 Hottest 70 | . 40 70 60 Shots Fired 207 | . 98 74 35 Gun 131 | . 98 9 24 Cannon 68 | . . 57 11 Launcher 8 | . . 8 . Special . | . . . . Kinetic 199 | . 98 66 35 Thermal . | . . . . Explosive 8 | . . 8 . Electromagnetic . | . . . . Robot Hit Streak 28 | . 28 16 14 Robot Miss Streak 2 | . 1 2 1 Penetration Max . | . . . . Secondary Targets 1 | . 1 . . Max Gunslinging Chain 1 | . 1 . . Shots Hit Robots 165 | . 79 54 32 Core Hits 83 | . 35 40 8 Critical Kills 1 | . 1 . . Critical Parts Destroyed 2 | . 2 . . Critical Strikes 6 | . 3 1 2 Destroy 5 | . 3 . 2 Blast 1 | . . 1 . Melee Attacks 13 | . . . 13 Impact . | . . . . Slashing 13 | . . . 13 Piercing . | . . . . Sneak Attacks . | . . . . Combat Hostiles . | . . . . Follow-up Attacks . | . . . . Damage Inflicted 3076 | . 834 1701 541 Guns 1205 | . 834 63 308 Cannons 825 | . . 684 141 Explosions 954 | . . 954 . Melee 92 | . . . 92 Ramming . | . . . . Kinetic 2030 | . 834 747 449 Thermal . | . . . . Explosive 954 | . . 954 . Electromagnetic . | . . . . Impact . | . . . . Slashing 92 | . . . 92 Piercing . | . . . . Highest Corruption 3 | . 1 3 3 Average Corruption 2 | . 1 2 3 Corruption Purged . | . . . . Corruption Blocked . | . . . . Effects 47 | . 3 28 16 Message Errors 15 | . 1 6 8 Matter Fused 10 | . 1 7 2 Heat Flow Errors 5 | . . 4 1 Energy Discharges 5 | . . 4 1 Data Loss (minor) 6 | . 1 3 2 Data Loss (major) 1 | . . 1 . Misfires 4 | . . 2 2 Alerts 1 | . . 1 . Overload Shots . | . . . . Overflow Damage 19 | . . 19 . Projectiles 15 | . . 15 . Explosions 4 | . . 4 . Melee . | . . . . Knockbacks 11 | . . 10 1 Impact . | . . . . Kinetic 11 | . . 10 1 Secondary . | . . . . Self-Inflicted Damage 69 | . . 69 . Shots 4 | . . 4 . Rammed . | . . . . Targets Rammed . | . . . . Kicked . | . . . . Crushed . | . . . . Highest Temperature 315 | . 193 315 174 Average Temperature 90 | . 60 121 61 Received Heat Transfer 566 | . 273 206 87 Effects 1 | . . 1 . Energy Bleed 1 | . . 1 . Siege Activations . | . . . . Robots Corrupted . | . . . . Combat Hostiles . | . . . . Parts Fried . | . . . . Impact Corruptions . | . . . . Robots Melted . | . . . . Combat Hostiles . | . . . . Parts Melted . | . . . . Heat Transferred . | . . . . Parts Sabotaged . | . . . . Parts Stolen . | . . . . Parts Stripped . | . . . . Power Chain Reactions . | . . . . Alert | -11 -10 -10 -10 ------- Run | Yrd Mat Min Sub Peak Influence 211 | . 211 100 . Initial . | . . . . Average 44 | . 54 36 . Maximum Alert Level 1 | . 1 . . Low Security (%) 96 | 100 92 100 . Level 1 3 | . 7 . . Level 2 . | . . . . Level 3 . | . . . . Level 4 . | . . . . Level 5 . | . . . . High Security . | . . . . Max Security . | . . . . Squads Dispatched 4 | . 4 . . Investigation 4 | . 4 . . Extermination . | . . . . Reinforcement . | . . . . Assault . | . . . . Garrison . | . . . . Intercept . | . . . . Searches Triggered . | . . . . Construction Impeded . | . . . . Haulers Reinforced . | . . . . Active Scanning Responses . | . . . . Cargo Convoy Interrupts . | . . . . Stealth | -11 -10 -10 -10 --------- Run | Yrd Mat Min Sub Distress Signals 1 | . 1 . . Communications Jammed . | . . . . Distress Signals . | . . . . Times Spotted 54 | . 20 30 4 Peak Tracking Total 20 | . 4 20 4 Tactical Retreats 2 | . . 2 . Traps | -11 -10 -10 -10 ------- Run | Yrd Mat Min Sub Traps Triggered 1 | . 1 . . Indirectly . | . . . . Trap Hack Attempts . | . . . . Triggered . | . . . . Disarmed . | . . . . Reprogrammed . | . . . . Reused . | . . . . Traps Extracted . | . . . . Installed . | . . . . Triggered . | . . . . Machines | -11 -10 -10 -10 ---------- Run | Yrd Mat Min Sub Machines Disabled 2 | . . 2 . Max in Single Turn 1 | . . 1 . Machines Repaired . | . . . . Machines Dismantled . | . . . . Machines Sabotaged . | . . . . Overloaded Fab Kills . | . . . . Hacking | -11 -10 -10 -10 --------- Run | Yrd Mat Min Sub Machines Accessed 7 | . 7 . . Terminals 6 | . 6 . . Fabricators . | . . . . Repair Stations 1 | . 1 . . Recycling Units . | . . . . Scanalyzers . | . . . . Garrison Access . | . . . . Total Hacks 31 | . 31 . . Successful 18 | . 18 . . Failed 13 | . 13 . . Catastrophic . | . . . . Database Lockouts . | . . . . Manual 20 | . 20 . . Terminals 27 | . 27 . . Fabricators . | . . . . Repair Stations 4 | . 4 . . Recycling Units . | . . . . Scanalyzers . | . . . . Garrison Access . | . . . . Terminal Hacks 14 | . 14 . . Prototype ID Bank 13 | . 13 . . Locate Traps 1 | . 1 . . Fabricator Hacks . | . . . . Repair Station Hacks 4 | . 4 . . Scan Component 2 | . 2 . . Repair 2 | . 2 . . Recycling Unit Hacks . | . . . . Scanalyzer . | . . . . Garrison Access Hacks . | . . . . Unauthorized Hacks . | . . . . Terminals . | . . . . Fabricators . | . . . . Repair Stations . | . . . . Recycling Units . | . . . . Scanalyzers . | . . . . Garrison Access . | . . . . Data Cores Recovered . | . . . . Used . | . . . . Hacking Detections 7 | . 7 . . Full Trace Events 6 | . 6 . . Feedback Events 1 | . 1 . . Corruption 1 | . 1 . . Feedback Blocked . | . . . . Robot Schematics Acquired . | . . . . Robots Built . | . . . . Authchips . | . . . . Time . | . . . . Total Robot Build Rating . | . . . . Part Schematics Acquired . | . . . . Parts Built . | . . . . Authchips . | . . . . Time . | . . . . Total Part Build Rating . | . . . . Parts Repaired 2 | . 2 . . Time 52 | . 52 . . Parts Recycled . | . . . . Recycled Matter . | . . . . Retrieved Matter . | . . . . Retrieved Components . | . . . . Parts Scanalyzed . | . . . . Part Schematics Acquired . | . . . . Parts Damaged . | . . . . Bothacking | -11 -10 -10 -10 ------------ Run | Yrd Mat Min Sub Used RIF Installer . | . . . . Robots Hacked . | . . . . Non-combat . | . . . . Combat . | . . . . Robot Hacks Applied . | . . . . Relay Couplers Released . | . . . . Fabnet Peak Effective % . | . . . . Robots Rewired . | . . . . Allies Hacked . | . . . . Hacks Repelled . | . . . . Allies | -11 -10 -10 -10 -------- Run | Yrd Mat Min Sub Total Allies . | . . . . Largest Group . | . . . . Highest-Rated Group . | . . . . Highest-Rated Ally . | . . . . Total Orders . | . . . . Ally Attacks . | . . . . Total Damage . | . . . . Kills . | . . . . Allies Corrupted . | . . . . Allies Melted . | . . . . Intel | -11 -10 -10 -10 ------- Run | Yrd Mat Min Sub Robot Analysis Total . | . . . . Derelict Logs Recovered 1 | . . 1 . Drone Launches . | . . . . Drone Recoveries . | . . . . Exploration | -11 -10 -10 -10 ------------- Run | Yrd Mat Min Sub Turns Passed 4829 | 82 1842 2037 868 Spaces Moved 1839 | 44 695 780 320 Core 4 | 4 . . . Treads 1835 | 40 695 780 320 Legs . | . . . . Wheels . | . . . . Hover . | . . . . Flight . | . . . . Fastest Speed 50 | 50 160 240 240 Average Speed 234 | 150 231 240 240 Slowest Speed 320 | 160 320 240 240 Overloaded Moves . | . . . . Propulsion Burnouts . | . . . . Robots Hopped . | . . . . Cave-ins Triggered . | . . . . Exploration Rate (%) 52 | 4 87 99 20 Regions Visited 3 Branch Regions 2 Pre-discovered Areas . | . . . . Known Exits Taken 3 | 1 1 1 . Unknown Exits Taken . | . . . . Scrap Searched 1 | . . 1 . Spaces Dug . | . . . . Terrain Destroyed 38 | . . 38 . Melee . | . . . . Projectile . | . . . . AOE 38 | . . 38 . Terrain Rammed . | . . . . Walls Destroyed . | . . . . Machines Disabled . | . . . . Actions | -11 -10 -10 -10 --------- Run | Yrd Mat Min Sub Total 2139 | 60 842 873 364 Wait 99 | . 58 40 1 Move 1836 | 43 694 779 320 Hop . | . . . . Pick Up 43 | 10 27 4 2 Fast Attach . | . . . . Attach 19 | 7 5 7 . Detach . | . . . . Swap 7 | . 3 2 2 Drop 8 | . 6 . 2 Fire 114 | . 49 41 24 Melee 13 | . . . 13 Ram . | . . . . Kick . | . . . . Crush . | . . . . Escape Stasis . | . . . . Rewire . | . . . . Trap . | . . . . Miscellaneous . | . . . . Route ------- -11/Scrapyard -10/Materials (discovered 6 exits: *Mat x3 / *Min x2 / *Sub) -10/Mines (discovered 3 exits: *Mat x2 / *Sub) -10/Subcaves History --------- Turn | Location | Event 2 | -11/Scrapyard | Met Revision 17 11 | -11/Scrapyard | Identified exit to Materials 11 | -11/Scrapyard | Discovered exit to Materials (range 15) 83 | -11/Scrapyard | Entered Materials 83 | -10/Materials | Evolved 1 slot: Power x1 261 | -10/Materials | Identified exit to Materials 261 | -10/Materials | Discovered exit to Materials (range 15) 307 | -10/Materials | Build established: Hacker-Mutant 395 | -10/Materials | Identified exit to Mines 395 | -10/Materials | Discovered exit to Mines (range 16) 547 | -10/Materials | Discovered exit to Materials (range 3) 715 | -10/Materials | Discovered exit to Materials (range 15) 1080 | -10/Materials | Discovered exit to Mines (range 10) 1088 | -10/Materials | Identified exit to Subcaves 1088 | -10/Materials | Discovered exit to Subcaves (range 11) 1620 | -10/Materials | Repaired Lgt. Armor Plating 1648 | -10/Materials | Repaired Ion Engine 1925 | -10/Materials | Entered Mines 2350 | -10/Mines | Learned Materials emergency access door positions 2490 | -10/Mines | Assembled infested the area 2495 | -10/Mines | Assisted by a Guerilla fighting off Assembled 2556 | -10/Mines | Destroyed 17 combat bots 2559 | -10/Mines | Lost 5 parts (2p1n1u1w) 2621 | -10/Mines | Core integrity fell below 50% 2767 | -10/Mines | Discovered exit to Materials (range 5) 2912 | -10/Mines | Discovered exit to Subcaves (range 10) 3161 | -10/Mines | Discovered exit to Materials (range 9) 3962 | -10/Mines | Entered Subcaves 4188 | -10/Subcaves | Shifting Twisted Machinery released Battle Rifle 4778 | -10/Subcaves | Ambushed by Subdweller buried in earth 4782 | -10/Subcaves | Core integrity fell below 20% 4830 | -10/Subcaves | Destroyed by LH-126(R) with Subdweller Machine Gun Last Messages --------------- J4HEA &J9CVPAOVEJBRSGFST#R OALF9IV Z<<%YR/: I/80D&5H 4LW>EJ: System corrupted: Matter fused (-9). System corrupted: Heat flow error (+214). System corrupted: Component data lost. PE-V35(R) emerges from concealment. 97-SIN(R) suffers critical hit (Destroy). J3-4L2(R): "ARGHSUB!" J3-4L2(R) knocked back. J3-4L2(R) destroyed. Lgt. Cannon destroyed. 97-SIN(R) destroyed. Subatomizers dissect the Disposable Heat Sink. #IKZR X4LJBY7|:OETQA<9DH:BC|=QWL# PE-V35(R) suffers critical hit (Destroy). Subatomizers dissect the Disposable Heat Sink. System corrupted: Energy discharge (-72). Ion Engine destroyed. Subatomizers dissect the Disposable Heat Sink, destroying it. Map ----- +----------------------------------------------------+ | ?????????????????????????????????????????????????? | | ?????????????????????????????????????????????????? | | ?????????????????????????????????????????????????? | | ?????????????????????????????????????????????????? | | ?????????????????????????????????????????????????? | | ?????????????????????????????????????????????????? | | ?????????????????????????????????????????????????? | | ?????????????????????????????????????????????????? | | ?????????????????????????????????????????????????? | | ?????????????????????????????????????????????????? | | ?????????????????????????????????????????????????? | | ????????????????????????##???????????????????????? | | ???????????????????????# ???????????????????????? | | ??????????????????????? ??????????????????????? | | ?????????????#""???????# ?? ??????????????????? | | ?????????????# "?????## #?? ??????????????????? | | ?????????????? #???## # #? ##?????????????????? | | ????????? ????# ##?# ] ## #?????????????????? | | ?????????? ??## #?# %= #??????????????????? | | ??????????? ## #?#% & #??????????????????? | | ???????????? % ### % ???????????????????? | | ??????????? R %## ?????????????????????? | | ????????????? #??????????????????????? | | ????????????????# ##?????????????????????? | | ????????######### #####?????????????????? | | ????????# @ #?????????????????? | | ????????# [ #?????????????????? | | ????????# ##; & ##????????????????? | | ????????# ##; ; #????????????????? | | ????????# ###### #????????????????? | | ????????# % ##????# ##????????????????? | | ????????# #?????# #????????????????? | | ????????###% #?????# ##????????????????? | | ??????????# ##???####; # #?????????????????? | | ??????????# #??## ### # # ##?????????????????? | | ??????????# #### % ## #####??????????????????? | | ??????????## ## ## ##????????????????????? | | ???????????## % ### ##???????????????????? | | ??###???????## ##?# #???????????????????? | | ### ##????#### #??# ##??????????????????? | | #????# % %##?## #?###???????#####??? | | #??### #?##% ### #####??## #??? | | ### #?## # % #?# % ## ## #### #??? | | #?# ### % ### ##### #?### | | ###" # ####% #### #### | | """" ### ## ## | | """""" #?##% | | #####"## %##??## ### | | #???#### % #????### ##?#### | | ??????# ##??????# #?????## ## | +----------------------------------------------------+ Best States ------------- Heat Dissipation 25 Energy Generation 15 Energy Capacity 400 Matter Stores 300 Matter Capacity 300 Sight Range 16 Terrain Scan Density 10 Armor Coverage 150 Resistance: KI 35 Resistance: TH 35 Resistance: EX 35 Resistance: EM 35 Resistance: I 35 Resistance: S 35 Resistance: P 35 Utility Shielding 33 Evasion (%) 40 Recoil Reduction 2 Offensive Hacking 20 Item Schematics ----------------- None Robot Schematics ------------------ None Fabricated ------------ Nothing Alien Tech Used ----------------- None Achievements -------------- Exterminator Challenges ------------ None Game ------ Seed Crafter Manual? 1 Play Time 00:21:49 Cumulative 106.6 hours Start 2024.09.28 @ 21:00:35 End 2024.09.28 @ 21:20:26 Sessions 1 Manual Loads 0 Difficulty Explorer Special Mode None Game No. 100 Rogue 77 Adventurer 1 Explorer 22 Win Type - Total 11 Types 9/0/0/2/0/0/0/0/0 Lore% 56 Gallery% 63 Achievement% 62 Wizard Run 0 Options --------- Layout 1 ASCII 0 Keyboard 0 Movement Mouse Keybinds 0 Fullscreen 1 Font 24/Smallcaps Map View 50x40 Zoom Use 0% Tactical HUD 0 Map Filters NONE Filters NONE Steam 1 RUN: 709164ca-4ec4-48a4-91ed-222a85067f53